bitfinex/quotes_BTCUSD_20220211
["timestamp","ask_amount","ask_price","bid_price","bid_amount"]
[1644569459067,0.30689172,43346.0,43345.0,0.45271635]
[1644569461267,0.30689172,43346.0,43345.0,0.50271635]
[1644569462125,0.30689172,43346.0,43345.0,0.28767002]
[1644569464830,0.30689172,43346.0,43345.0,0.33767002]
[1644569465672,0.30689172,43346.0,43345.0,0.28767002]
[1644569466869,0.53689172,43346.0,43345.0,0.28744753]
[1644569469418,0.23689172,43346.0,43345.0,0.20219467]
[1644569469915,0.23689172,43346.0,43345.0,0.19204685]
[1644569472619,0.23689172,43346.0,43345.0,0.14604685]
[1644569475566,0.23,43346.0,43345.0,0.14604685]
[1644569483875,0.23,43346.0,43345.0,0.19204685]
[1644569487431,0.61834975,43352.0,43345.0,0.19204685]
[1644569487432,0.25145242,43365.0,43359.0,0.08202428]
[1644569487638,0.25145242,43365.0,43360.0,0.32981028]
[1644569487639,0.34183801,43362.0,43360.0,0.32981028]
[1644569487933,0.25145242,43365.0,43360.0,0.32981028]
[1644569487934,0.25145242,43365.0,43361.0,0.321169]
[1644569488172,0.29322167,43367.0,43362.0,0.046]
[1644569488173,0.00024107,43367.0,43362.0,0.046]
[1644569488371,0.002,43370.0,43363.0,0.321169]
[1644569488372,0.00024107,43369.0,43363.0,0.321169]
[1644569488574,0.002,43370.0,43363.0,0.321169]
[1644569488575,0.00224107,43370.0,43365.0,0.321169]
[1644569488773,0.00024107,43369.0,43368.0,0.23355177]
[1644569488972,0.23,43369.0,43368.0,0.60072077]
[1644569489174,0.23,43369.0,43368.0,0.59684077]
[1644569489673,0.23,43369.0,43368.0,0.424829]
[1644569489874,0.23,43369.0,43368.0,0.367169]
[1644569490473,2.79935772,43369.0,43368.0,0.046]
[1644569490671,2.79935772,43369.0,43367.0,0.057659]
[1644569490871,2.84959879,43369.0,43368.0,0.046]
[1644569491072,3.02456072,43369.0,43367.0,0.057659]
[1644569491274,0.175203,43368.0,43367.0,0.057659]
[1644569491473,0.58948497,43369.0,43367.0,0.057659]
[1644569491672,0.175203,43368.0,43367.0,0.057659]
[1644569492929,0.275203,43368.0,43345.0,0.122]
[1644569493129,0.175203,43367.0,43349.0,0.81987124]
[1644569493326,0.17544407,43367.0,43349.0,0.81987124]
[1644569493524,0.22544407,43367.0,43351.0,0.057696]
[1644569493726,0.22544407,43367.0,43352.0,0.31987124]
[1644569493727,0.30069932,43354.0,43352.0,0.31987124]
[1644569493929,0.32280017,43356.0,43353.0,0.321169]
[1644569493930,0.66315132,43356.0,43353.0,0.321169]
[1644569494526,0.34035115,43356.0,43353.0,0.321169]
[1644569495869,0.39804215,43356.0,43355.0,0.321169]
[1644569496071,0.39804215,43356.0,43353.0,0.11538]
[1644569496072,0.39804215,43356.0,43354.0,0.321169]
[1644569496670,0.39804215,43356.0,43354.0,0.32106523]
[1644569497470,0.057691,43361.0,43354.0,0.321169]
[1644569497676,0.00024107,43366.0,43362.0,0.2]
[1644569497985,0.24649907,43373.0,43366.0,0.321102]
[1644569497986,0.00024107,43367.0,43366.0,0.321102]
[1644569498174,0.00024107,43369.0,43366.0,0.367102]
[1644569498373,0.00024107,43372.0,43367.0,0.321102]
[1644569498578,0.00024107,43369.0,43368.0,1.00371373]
[1644569498875,0.00224107,43370.0,43369.0,0.321102]
[1644569499075,0.002,43370.0,43369.0,0.367102]
[1644569499315,0.002,43370.0,43369.0,0.467102]
[1644569500119,0.002,43370.0,43369.0,0.79499696]
[1644569500918,0.232,43370.0,43369.0,0.79499696]
[1644569501720,0.31173033,43370.0,43369.0,0.79499696]
[1644569502621,0.31173033,43370.0,43369.0,0.467102]
[1644569503470,0.31173033,43370.0,43369.0,0.367102]
[1644569504469,0.63179241,43370.0,43369.0,0.046]
[1644569505673,0.63179241,43370.0,43369.0,0.367102]
[1644569505870,0.63179241,43370.0,43369.0,0.046]
[1644569506169,0.63179241,43370.0,43369.0,0.367102]
[1644569506820,0.63179241,43370.0,43369.0,0.046]
[1644569507522,0.31173033,43370.0,43369.0,0.046]
[1644569507925,0.31173033,43370.0,43369.0,0.367102]
[1644569508627,0.6176951,43370.0,43369.0,0.046]
[1644569509525,0.31173033,43370.0,43369.0,0.046]
[1644569509725,0.31173033,43370.0,43369.0,0.367102]
[1644569511172,0.31173033,43370.0,43369.0,0.046]
[1644569511372,0.38323433,43370.0,43369.0,0.046]
[1644569511770,0.43323433,43370.0,43369.0,0.046]
[1644569512072,0.31173033,43370.0,43369.0,0.046]
[1644569512670,0.9,43369.0,43367.0,0.115311]
[1644569512873,0.9,43369.0,43356.0,0.9405]
[1644569512874,0.43872286,43368.0,43356.0,0.9405]
[1644569513071,0.05,43364.0,43344.0,0.42]
[1644569513270,0.05,43364.0,43346.0,0.330331]
[1644569513271,0.05769944,43362.0,43346.0,0.330331]
[1644569513476,0.05769944,43362.0,43351.0,0.0577]
[1644569513671,0.35499457,43358.0,43353.0,0.22353597]
[1644569514176,0.0760583,43355.0,43353.0,0.22353597]
[1644569514621,0.0760583,43355.0,43354.0,0.321102]
[1644569515823,0.0760583,43355.0,43353.0,0.057696]
[1644569516027,0.0760583,43355.0,43354.0,0.321102]
[1644569516623,0.0760583,43355.0,43353.0,0.057696]
[1644569516923,0.0760583,43355.0,43354.0,0.321102]
[1644569517324,0.0760583,43355.0,43353.0,0.057696]
[1644569519668,0.057694,43357.0,43353.0,0.057696]
[1644569520470,0.057694,43357.0,43354.0,0.321102]
[1644569520669,0.057694,43357.0,43353.0,0.057696]
[1644569521471,0.05769605,43356.0,43354.0,0.07198806]
[1644569521675,0.11561207,43365.0,43355.0,0.321102]
[1644569521923,0.05,43365.0,43355.0,0.057686]
[1644569522122,0.00024107,43368.0,43356.0,0.321102]
[1644569522322,0.23,43365.0,43354.0,0.321102]
[1644569522525,0.3667241,43360.0,43358.0,0.18928849]
[1644569522923,0.3667241,43360.0,43359.0,0.321102]
[1644569522924,0.4167241,43360.0,43359.0,0.321102]
[1644569523125,0.4167241,43360.0,43358.0,0.18928849]
[1644569523424,0.4167241,43360.0,43357.0,0.057684]
[1644569523623,0.05,43360.0,43358.0,0.321102]
[1644569523826,0.13407424,43362.0,43361.0,0.1]
[1644569524024,0.13407424,43362.0,43359.0,0.321102]
[1644569524425,0.13407424,43362.0,43359.0,0.057681]
[1644569524824,0.13407424,43362.0,43360.0,0.321102]
[1644569525026,0.13407424,43362.0,43361.0,0.321102]
[1644569525226,0.18407424,43362.0,43359.0,0.057681]
[1644569526271,0.107683,43362.0,43359.0,0.057681]
[1644569526671,0.057683,43362.0,43359.0,0.057681]
[1644569527072,0.057683,43362.0,43360.0,0.321102]
[1644569527274,0.057683,43362.0,43359.0,0.057681]
[1644569527474,0.057683,43362.0,43360.0,0.321102]
[1644569527675,0.057683,43362.0,43359.0,0.057681]
[1644569528073,0.40806718,43362.0,43359.0,0.057681]
[1644569528676,0.33150315,43360.0,43359.0,0.057681]
[1644569528977,0.33150315,43360.0,43357.0,0.057684]
[1644569529174,0.115376,43361.0,43357.0,0.057684]
[1644569529826,0.05,43360.0,43357.0,0.057684]
[1644569530228,0.05,43360.0,43358.0,0.321102]
[1644569530429,0.05,43360.0,43359.0,0.321102]
[1644569530628,0.05,43360.0,43357.0,0.057684]
[1644569531038,0.05793107,43363.0,43358.0,0.66518965]
[1644569531039,0.00024107,43363.0,43358.0,0.66518965]
[1644569531332,0.42,43372.0,43360.0,0.321102]
[1644569531333,0.00024107,43364.0,43360.0,0.321102]
[1644569531533,0.42,43372.0,43361.0,0.40325354]
[1644569531534,0.00024107,43369.0,43361.0,0.40325354]
[1644569531731,0.42,43372.0,43361.0,0.40325354]
[1644569531732,0.00024107,43364.0,43363.0,0.30068116]
[1644569531929,0.00024107,43368.0,43363.0,1.18984558]
[1644569532130,0.33007375,43369.0,43364.0,0.37877]
[1644569532330,0.00024107,43367.0,43364.0,0.42477]
[1644569532530,0.00024107,43368.0,43364.0,0.42477]
[1644569532730,0.00024107,43366.0,43364.0,0.42477]
[1644569532930,0.00095218,43367.0,43364.0,0.70836701]
[1644569533172,0.00071111,43367.0,43364.0,0.80836701]
[1644569533370,0.00024107,43366.0,43364.0,0.80836701]
[1644569534173,0.00071111,43367.0,43364.0,0.80836701]
[1644569534371,0.00024107,43366.0,43364.0,0.80836701]
[1644569535072,0.00024107,43366.0,43364.0,0.467102]
[1644569535273,0.32983268,43369.0,43364.0,0.467102]
[1644569535274,0.00071111,43367.0,43364.0,0.467102]
[1644569535569,0.00024107,43366.0,43364.0,0.467102]
[1644569536371,0.32983268,43369.0,43364.0,0.467102]
[1644569536372,0.05838711,43367.0,43364.0,0.467102]
[1644569536571,0.00024107,43366.0,43364.0,0.467102]
[1644569538822,0.32983268,43369.0,43364.0,0.467102]
[1644569538823,0.00070051,43367.0,43364.0,0.467102]
[1644569539022,0.00024107,43366.0,43364.0,0.467102]
[1644569539824,0.00024107,43366.0,43364.0,0.367102]
[1644569543174,0.00024107,43366.0,43364.0,0.75394389]
[1644569543576,0.225,43365.0,43364.0,0.85394389]
[1644569543772,0.225,43365.0,43364.0,0.75394389]
[1644569543973,0.22486863,43365.0,43364.0,0.81161289]
[1644569545422,0.22486863,43365.0,43364.0,0.90015689]
[1644569546023,0.22486863,43365.0,43364.0,1.40015689]
[1644569547127,0.22486863,43365.0,43364.0,1.45015689]
[1644569547525,0.22486863,43365.0,43364.0,1.21161289]
[1644569548871,0.22486863,43365.0,43364.0,1.31161289]
[1644569549472,0.22486863,43365.0,43364.0,1.024771]
[1644569551674,0.22486863,43365.0,43364.0,0.524771]
[1644569552926,0.22486863,43365.0,43364.0,0.80920389]
[1644569553930,0.002,43370.0,43365.0,0.85]
[1644569554129,0.002,43370.0,43366.0,1.14267113]
[1644569554331,0.002,43370.0,43366.0,0.89869127]
[1644569554529,0.002,43370.0,43367.0,0.321102]
[1644569554731,0.002,43370.0,43368.0,0.046]
[1644569554933,0.002,43370.0,43369.0,0.321102]
[1644569555129,0.002,43370.0,43369.0,0.45293789]
[1644569555775,0.002,43370.0,43369.0,0.55293789]
[1644569555979,0.002,43370.0,43369.0,0.45293789]
[1644569556375,0.002,43370.0,43369.0,0.467102]
[1644569556376,0.232,43370.0,43369.0,0.467102]
[1644569557377,0.232,43370.0,43369.0,0.046]
[1644569557579,0.002,43370.0,43369.0,0.046]
[1644569558475,0.002,43370.0,43369.0,0.367102]
[1644569558976,0.002,43370.0,43369.0,0.046]
[1644569561931,0.002,43370.0,43369.0,0.11660337]
[1644569562131,0.002,43370.0,43369.0,0.43770537]
[1644569562736,0.002,43370.0,43369.0,0.49537337]
[1644569563170,0.002,43370.0,43369.0,0.81967458]
[1644569564368,0.002,43370.0,43369.0,0.49537337]
[1644569565068,0.002,43370.0,43369.0,0.42477]
[1644569565274,0.002,43370.0,43369.0,0.367102]
[1644569565469,0.002,43370.0,43369.0,0.046]
[1644569566271,0.002,43370.0,43369.0,0.367102]
[1644569567125,0.212,43370.0,43369.0,0.046]
[1644569568528,0.212,43370.0,43367.0,0.057667]
[1644569568529,0.269675,43370.0,43367.0,0.057667]
[1644569569632,0.54463527,43370.0,43367.0,0.057667]
[1644569570578,0.54487529,43370.0,43367.0,0.047667]
[1644569571369,0.54463527,43370.0,43367.0,0.047667]
[1644569571569,0.54487529,43370.0,43367.0,0.047667]
[1644569571970,0.26991502,43370.0,43367.0,0.047667]
[1644569572170,0.26991502,43370.0,43368.0,0.046]
[1644569572571,0.269675,43370.0,43368.0,0.046]
[1644569572771,0.26991502,43370.0,43368.0,0.046]
[1644569572974,0.21224002,43370.0,43368.0,0.046]
[1644569573178,0.21224002,43370.0,43368.0,0.103669]
[1644569573772,0.212,43370.0,43368.0,0.103669]
[1644569573973,0.26991102,43370.0,43368.0,0.103669]
[1644569574175,0.26991102,43370.0,43368.0,0.046]
[1644569574821,0.269671,43370.0,43368.0,0.046]
[1644569575221,0.21224002,43370.0,43368.0,0.046]
[1644569576023,0.212,43370.0,43368.0,0.103669]
[1644569576225,0.269671,43370.0,43368.0,0.046]
[1644569576626,0.26991102,43370.0,43368.0,0.046]
[1644569576924,0.26991102,43370.0,43367.0,0.047667]
[1644569577325,0.32414604,43368.0,43367.0,0.047667]
[1644569579171,0.67993803,43368.0,43367.0,0.047667]
[1644569579572,0.057682,43367.0,43362.0,0.115363]
[1644569579771,0.30902418,43366.0,43362.0,0.115363]
[1644569580574,0.30902418,43366.0,43363.0,0.321102]
[1644569580771,0.36670518,43366.0,43363.0,0.321102]
[1644569581576,0.36670518,43366.0,43364.0,0.321102]
[1644569581831,0.071504,43364.0,43363.0,0.057681]
[1644569582026,0.071504,43364.0,43360.0,0.00071155]
[1644569582229,0.41318304,43364.0,43360.0,0.00071155]
[1644569582625,0.19467304,43363.0,43360.0,0.00071155]
[1644569582825,0.071504,43362.0,43360.0,0.00071155]
[1644569583028,0.32815861,43361.0,43359.0,0.009228]
[1644569583226,0.44966261,43361.0,43359.0,0.00993953]
[1644569583629,0.32815861,43361.0,43359.0,0.00993953]
[1644569583827,0.39966261,43361.0,43359.0,0.00993953]
[1644569584228,0.45735861,43361.0,43359.0,0.009228]
[1644569584925,0.45735861,43361.0,43358.0,0.00071154]
[1644569585126,0.057693,43360.0,43358.0,0.00071154]
[1644569585575,0.39465122,43358.0,43356.0,0.057693]
[1644569585772,0.39465122,43358.0,43357.0,0.00071154]
[1644569586174,0.46299402,43358.0,43357.0,0.00071154]
[1644569586372,0.39465122,43358.0,43357.0,0.00071154]
[1644569586572,0.39465122,43358.0,43357.0,0.32181354]
[1644569586573,0.30033308,43358.0,43357.0,0.32181354]
[1644569586773,0.30033308,43358.0,43357.0,0.321102]
[1644569587673,0.35802408,43358.0,43356.0,0.321102]
[1644569588475,0.43884142,43358.0,43355.0,0.05840555]
[1644569588678,0.43884142,43358.0,43356.0,0.321102]
[1644569588875,0.35802408,43358.0,43356.0,0.321102]
[1644569589525,0.56802408,43358.0,43356.0,0.321102]
[1644569590925,0.56802408,43358.0,43355.0,0.05840556]
[1644569591127,0.56802408,43358.0,43356.0,0.321102]
[1644569591727,0.56802408,43358.0,43355.0,0.00071156]
[1644569592628,0.56802408,43358.0,43352.0,0.057694]
[1644569592829,0.56802408,43358.0,43354.0,0.00071156]
[1644569592830,0.61802408,43358.0,43354.0,0.00071156]
[1644569593875,0.61802408,43358.0,43353.0,0.057694]
[1644569594073,0.61802408,43358.0,43354.0,0.00071156]
[1644569594878,0.1,43357.0,43354.0,0.00071156]
[1644569595075,0.1,43357.0,43347.0,0.009229]
[1644569595076,0.071504,43356.0,43347.0,0.009229]
[1644569595274,0.0696434,43350.0,43347.0,0.009229]
[1644569595475,0.35652047,43348.0,43347.0,0.01207567]
[1644569595675,0.74836619,43348.0,43347.0,0.01207567]
[1644569596280,0.74836619,43348.0,43347.0,0.009229]
[1644569596480,0.74836619,43348.0,43345.0,0.00071161]
[1644569596676,0.071504,43347.0,43345.0,0.00071161]
[1644569596925,0.84227619,43348.0,43345.0,0.00071161]
[1644569597225,1.13724527,43348.0,43345.0,0.00071161]
[1644569597423,1.13724527,43348.0,43340.0,0.00021872]
[1644569597625,1.07953827,43348.0,43344.0,0.00071161]
[1644569598023,0.05771,43347.0,43344.0,0.00071161]
[1644569598627,0.05771,43347.0,43340.0,0.00021872]
[1644569598829,0.05771,43347.0,43343.0,0.00071162]
[1644569599132,0.057708,43346.0,43343.0,0.00071162]
[1644569599929,0.057708,43346.0,43342.0,0.00021872]
[1644569600129,0.057708,43346.0,43343.0,0.321102]
[1644569600328,0.057708,43346.0,43344.0,0.321102]
[1644569600583,0.057708,43346.0,43342.0,0.00093034]
[1644569600584,0.057708,43346.0,43343.0,0.32132072]
[1644569600777,0.057708,43346.0,43344.0,0.321102]
[1644569600978,0.057708,43346.0,43343.0,0.00021872]
[1644569601176,0.057708,43346.0,43342.0,0.00021872]
[1644569601377,0.30495157,43345.0,43343.0,0.32181362]
[1644569601679,0.41266057,43345.0,43343.0,0.00071162]
[1644569601877,0.29212246,43344.0,43343.0,0.00071162]
[1644569602077,0.29212246,43344.0,43343.0,0.32181362]
[1644569602275,0.29212246,43344.0,43343.0,0.321102]
[1644569602875,0.29212246,43344.0,43343.0,0.378811]
[1644569604925,0.057709,43345.0,43343.0,0.057709]
[1644569605325,0.057709,43345.0,43344.0,0.321102]
[1644569605527,0.057709,43345.0,43343.0,0.057709]
[1644569606326,0.057709,43345.0,43343.0,0.05792772]
[1644569606528,0.057709,43345.0,43344.0,0.321102]
[1644569607527,0.057709,43345.0,43343.0,0.05792772]
[1644569608175,0.057709,43345.0,43344.0,0.321102]
[1644569610577,0.057709,43345.0,43343.0,0.05792772]
[1644569610578,0.35077242,43345.0,43343.0,0.05792772]
[1644569610778,0.32911197,43344.0,43343.0,0.00021872]
[1644569610977,0.071504,43343.0,43342.0,0.00093034]
[1644569611176,0.36413377,43343.0,43342.0,0.00071162]
[1644569612025,0.33616304,43341.0,43340.0,0.05793372]
[1644569612229,0.33616304,43341.0,43340.0,0.37952863]
[1644569612525,0.057716,43343.0,43341.0,0.321102]
[1644569612724,0.057716,43343.0,43341.0,0.32132072]
[1644569613326,0.35432974,43343.0,43341.0,0.32132072]
[1644569613526,0.41204508,43343.0,43341.0,0.32132072]
[1644569614526,0.41204508,43343.0,43341.0,0.32124393]
[1644569616577,0.69790958,43343.0,43341.0,0.32124393]
[1644569616776,0.17471236,43343.0,43341.0,0.00021872]
[1644569616977,0.17471236,43343.0,43341.0,0.321229]
[1644569617177,0.17471236,43343.0,43341.0,0.00021872]
[1644569617380,0.2901437,43343.0,43340.0,0.05864536]
[1644569617577,0.2901437,43343.0,43341.0,0.321229]
[1644569617777,0.2901437,43343.0,43341.0,0.32144772]
[1644569617977,0.28931009,43343.0,43341.0,0.32144772]
[1644569618582,0.28931009,43343.0,43341.0,0.00021872]
[1644569618777,0.28931009,43343.0,43341.0,0.321229]
[1644569618979,0.34702309,43343.0,43341.0,0.32144772]
[1644569619179,0.34702309,43343.0,43336.0,0.4076]
[1644569619429,0.34702309,43343.0,43340.0,0.00071164]
[1644569619430,0.057712,43342.0,43340.0,0.00071164]
[1644569619837,0.057712,43342.0,43340.0,0.32194464]
[1644569620232,0.057712,43342.0,43336.0,0.1]
[1644569620434,0.11542251,43342.0,43339.0,0.11613364]
[1644569620635,0.11542251,43342.0,43340.0,0.321233]
[1644569620836,0.321233,43341.0,43339.0,0.11613364]
[1644569621035,0.321233,43340.0,43339.0,0.11613364]
[1644569621438,0.64134416,43340.0,43339.0,0.115422]
[1644569621635,0.64134416,43340.0,43335.0,0.00048352]
[1644569621835,0.071556,43338.0,43335.0,0.00048352]
[1644569622135,0.156196,43338.0,43335.0,0.00048352]
[1644569622333,0.156196,43338.0,43334.0,0.00498356]
[1644569622334,0.71158511,43336.0,43334.0,0.00498356]
[1644569622537,0.71158511,43336.0,43334.0,0.00306704]
[1644569622733,0.82703211,43336.0,43334.0,0.06079104]
[1644569624380,0.82703211,43336.0,43334.0,0.00306704]
[1644569624579,0.071556,43335.0,43334.0,0.00306704]
[1644569627832,0.121556,43335.0,43334.0,0.00306704]
[1644569630777,0.12016528,43335.0,43334.0,0.00306704]
[1644569632579,0.42593592,43335.0,43334.0,0.00306704]
[1644569633580,0.42593592,43335.0,43332.0,0.0021]
[1644569633581,0.98366803,43335.0,43332.0,0.0021]
[1644569633780,0.321233,43333.0,43332.0,0.00276724]
[1644569633981,0.63622033,43333.0,43332.0,0.00276724]
[1644569634181,0.68622033,43333.0,43331.0,0.0021074]
[1644569634435,0.39483272,43332.0,43331.0,0.0021074]
[1644569634634,0.39483272,43332.0,43331.0,0.001]
[1644569634835,0.39483272,43332.0,43331.0,0.00121525]
[1644569638281,0.44483272,43332.0,43331.0,0.00121525]
[1644569638480,0.121556,43332.0,43331.0,0.00121525]
[1644569640078,0.071556,43332.0,43331.0,0.00121525]
[1644569640281,0.321233,43332.0,43331.0,0.28366271]
[1644569640480,0.0577335,43333.0,43331.0,0.00121525]
[1644569640680,0.057733,43334.0,43331.0,0.00121525]
[1644569640681,0.057733,43334.0,43332.0,0.321233]
[1644569640881,0.057733,43334.0,43332.0,0.32144825]
[1644569642032,0.11545024,43334.0,43332.0,0.32144825]
[1644569642231,0.057733,43334.0,43332.0,0.32144825]
[1644569643435,0.11544905,43334.0,43332.0,0.00021525]
[1644569643634,0.11544905,43334.0,43332.0,0.321233]
[1644569643833,0.11544905,43334.0,43332.0,0.32144825]
[1644569644232,0.38567513,43334.0,43332.0,0.00021525]
[1644569644433,0.11544905,43334.0,43332.0,0.321233]
[1644569644635,0.11544905,43334.0,43332.0,0.32144825]
[1644569645883,0.057733,43334.0,43333.0,0.046]
[1644569646088,0.325465,43335.0,43333.0,0.046]
[1644569646089,0.21,43335.0,43333.0,0.94264825]
[1644569646280,0.21,43335.0,43334.0,0.5752]
[1644569646479,0.21,43335.0,43334.0,0.94264825]
[1644569646680,0.56166113,43349.0,43343.0,0.3159668]
[1644569646980,0.06924542,43344.0,43341.0,0.23870595]
[1644569647182,0.06924542,43344.0,43337.0,0.00021525]
[1644569647183,0.12694942,43344.0,43337.0,0.00021525]
[1644569647380,0.12694942,43344.0,43338.0,0.046]
[1644569647881,0.12694942,43344.0,43339.0,0.321233]
[1644569648080,0.12694942,43344.0,43341.0,0.057704]
[1644569648280,0.48049151,43344.0,43342.0,0.046]
[1644569648580,0.12694942,43344.0,43342.0,0.046]
[1644569649830,0.17694942,43344.0,43342.0,0.046]
[1644569650030,0.34852389,43343.0,43342.0,0.046]
[1644569650434,0.40623233,43343.0,43342.0,0.046]
[1644569651435,0.05770844,43343.0,43342.0,0.046]
[1644569651641,0.12694942,43344.0,43342.0,0.046]
[1644569651642,0.057704,43344.0,43342.0,0.046]
[1644569651839,0.057704,43344.0,43343.0,0.66398875]
[1644569652033,0.05769,43346.0,43343.0,1.28518875]
[1644569652233,0.05769,43346.0,43345.0,0.5752]
[1644569652434,0.05769,43346.0,43345.0,0.942433]
[1644569652634,0.05769,43346.0,43345.0,1.042433]
[1644569653283,0.1250991,43346.0,43345.0,1.042433]
[1644569654483,0.05681407,43346.0,43345.0,1.042433]
[1644569655285,0.05681407,43346.0,43345.0,0.942433]
[1644569655883,0.14329724,43346.0,43345.0,0.6212]
[1644569656283,0.18329724,43346.0,43345.0,0.6212]
[1644569656486,0.13329724,43346.0,43345.0,0.6212]
[1644569657429,0.04681407,43346.0,43345.0,0.6212]
[1644569658230,0.46804707,43346.0,43343.0,0.009231]
[1644569658429,0.6,43344.0,43339.0,0.00021525]
[1644569658628,0.071556,43342.0,43335.0,0.00021525]
[1644569658828,0.071556,43342.0,43333.0,0.38181525]
[1644569658829,0.321233,43340.0,43333.0,0.38181525]
[1644569659028,0.05,43342.0,43334.0,0.321233]
[1644569659029,0.28421454,43337.0,43334.0,0.321233]
[1644569659230,0.64249436,43337.0,43334.0,0.32144825]
[1644569659428,0.82110531,43337.0,43334.0,0.32144825]
[1644569659629,0.75793547,43337.0,43334.0,0.00021525]
[1644569659829,0.70793547,43337.0,43334.0,0.00021525]
[1644569660228,0.70793547,43337.0,43333.0,0.32703325]
[1644569660886,0.70793547,43337.0,43335.0,0.321233]
[1644569661087,0.39965565,43337.0,43335.0,0.321233]
[1644569661486,0.39965565,43337.0,43335.0,0.32144825]
[1644569663687,0.39965565,43337.0,43335.0,0.00021525]
[1644569663887,0.39965565,43337.0,43334.0,0.05793125]
[1644569664328,0.39965565,43337.0,43335.0,0.321233]
[1644569664533,0.39965565,43337.0,43335.0,0.00021525]
[1644569664730,0.39965565,43337.0,43336.0,0.321233]
[1644569666331,0.11544111,43337.0,43336.0,0.321233]
[1644569666534,0.11544111,43337.0,43336.0,0.76810637]
[1644569666535,0.057721,43337.0,43336.0,0.76810637]
[1644569666932,0.057721,43337.0,43336.0,0.467233]
[1644569667533,0.11543357,43337.0,43336.0,0.467233]
[1644569668987,0.11543357,43337.0,43336.0,0.367233]
[1644569669287,0.11543357,43337.0,43336.0,0.321233]
[1644569670286,0.11543357,43337.0,43336.0,0.311233]
[1644569671586,0.11543357,43337.0,43336.0,0.306233]
[1644569673931,0.11543357,43337.0,43336.0,0.301233]
[1644569676694,0.057721,43337.0,43336.0,0.301233]
[1644569676894,0.65377587,43341.0,43336.0,0.358951]
[1644569676895,0.34105328,43341.0,43336.0,0.358951]
[1644569677094,0.34105328,43341.0,43337.0,0.321233]
[1644569677495,0.34105328,43341.0,43336.0,0.321248]
[1644569677795,0.115437,43340.0,43336.0,0.32146325]
[1644569678195,0.115437,43340.0,43336.0,0.321248]
[1644569678697,0.115437,43340.0,43336.0,0.421248]
[1644569678894,0.05771699,43339.0,43336.0,0.421248]
[1644569679093,0.057713,43338.0,43336.0,0.421248]
[1644569679733,0.057713,43338.0,43336.0,0.478964]
[1644569679937,0.11542786,43338.0,43337.0,0.321248]
[1644569680333,0.11542786,43338.0,43335.0,0.321248]
[1644569680934,0.17314986,43338.0,43335.0,0.321248]
[1644569682438,0.17314986,43338.0,43334.0,0.321248]
[1644569682734,0.115445,43337.0,43334.0,0.321248]
[1644569682934,0.17316769,43337.0,43333.0,0.321248]
[1644569683779,0.17316661,43336.0,43333.0,0.321248]
[1644569684279,0.05772157,43335.0,43333.0,0.321248]
[1644569685179,0.05772157,43335.0,43333.0,0.32146325]
[1644569685581,0.37900749,43334.0,43333.0,0.32146325]
[1644569685785,0.70025549,43334.0,43333.0,0.00021525]
[1644569685981,0.70025549,43334.0,43332.0,0.00021525]
[1644569686182,0.1492683,43333.0,43331.0,0.01044825]
[1644569686387,0.321248,43332.0,43331.0,0.01044825]
[1644569687233,0.3863532,43332.0,43331.0,0.01044825]
[1644569688834,0.321248,43332.0,43331.0,0.01044825]
[1644569689435,0.311248,43332.0,43331.0,0.01044825]
[1644569689936,0.311248,43332.0,43331.0,0.00121525]
[1644569690587,0.361248,43332.0,43331.0,0.00121525]
[1644569690783,0.311248,43332.0,43331.0,0.00121525]
[1644569691381,0.37761277,43332.0,43331.0,0.00121525]
[1644569691580,0.311248,43332.0,43331.0,0.00121525]
[1644569692489,0.311248,43332.0,43329.0,0.00365077]
[1644569692490,0.057736,43331.0,43329.0,0.003]
[1644569692687,0.20701348,43331.0,43329.0,0.003]
[1644569692883,0.25701348,43331.0,43329.0,0.003]
[1644569693282,0.57582709,43331.0,43329.0,0.003]
[1644569694833,0.52582709,43331.0,43329.0,0.003]
[1644569696935,0.57582709,43331.0,43329.0,0.003]
[1644569697535,0.28204969,43331.0,43329.0,0.003]
[1644569698585,0.50097218,43331.0,43329.0,0.003]
[1644569700788,0.28204969,43331.0,43329.0,0.003]
[1644569701187,0.29726392,43330.0,43329.0,0.003]
[1644569703335,0.60850492,43330.0,43328.0,0.0022]
[1644569703533,0.42145593,43329.0,43328.0,0.0022]
[1644569704735,0.59469253,43329.0,43326.0,0.00064623]
[1644569704936,0.311241,43327.0,43326.0,0.00064623]
[1644569705134,0.6265824,43327.0,43326.0,0.00064623]
[1644569705789,0.9485689,43327.0,43325.0,0.0021]
[1644569705992,0.2882041,43326.0,43325.0,0.0021]
[1644569706189,0.3797431,43326.0,43325.0,0.0021]
[1644569707691,0.141539,43326.0,43325.0,0.0021]
[1644569707894,0.141539,43326.0,43325.0,0.00231302]
[1644569708793,0.091539,43326.0,43325.0,0.00231302]
[1644569709193,0.091539,43326.0,43321.0,0.00051304]
[1644569709441,0.091539,43323.0,43321.0,0.00051304]
[1644569709641,0.311234,43324.0,43323.0,0.00066492]
[1644569709842,0.6099736,43324.0,43323.0,0.00066492]
[1644569710643,0.6099736,43324.0,43322.0,0.00021303]
[1644569710843,0.6099736,43324.0,43321.0,0.00072607]
[1644569711042,0.84095384,43324.0,43321.0,0.00072607]
[1644569711245,0.368982,43323.0,43321.0,0.00072607]
[1644569712645,0.29447596,43322.0,43321.0,0.00072607]
[1644569712844,0.60570996,43322.0,43321.0,0.00072607]
[1644569715594,0.311234,43322.0,43321.0,0.00072607]
[1644569716596,0.6015126,43322.0,43321.0,0.00072607]
[1644569717039,0.311234,43322.0,43321.0,0.00072607]
[1644569728388,0.19690845,43322.0,43321.0,0.00072607]
[1644569728591,0.34647524,43324.0,43321.0,0.00072607]
[1644569728592,0.28872724,43324.0,43323.0,0.95]
[1644569728792,0.115485,43325.0,43323.0,1.317341]
[1644569728990,0.115457,43328.0,43324.0,0.3143884]
[1644569729187,0.00067419,43332.0,43325.0,0.367341]
[1644569729395,0.00067419,43332.0,43330.0,0.24553451]
[1644569729587,0.00067419,43332.0,43331.0,0.425053]
[1644569729788,0.00067419,43332.0,43331.0,0.367341]
[1644569730391,0.00067419,43332.0,43331.0,0.7817294]
[1644569730689,0.00067419,43332.0,43331.0,0.8975294]